bitfinex-derivatives/quotes_BTCF0:USTF0_20240830
["timestamp","ask_amount","ask_price","bid_price","bid_amount"]
[1724981949521,0.26836602,59234.0,59233.0,0.000253]
[1724981950032,0.25636602,59234.0,59233.0,0.000253]
[1724981950723,0.26336602,59234.0,59233.0,0.001253]
[1724981951629,0.64282589,59234.0,59233.0,0.001253]
[1724981952323,1.7619825,59234.0,59233.0,0.001253]
[1724981952524,1.8463805,59234.0,59233.0,0.001253]
[1724981952730,1.8503805,59234.0,59233.0,0.001253]
[1724981952933,0.084413,59224.0,59218.0,0.084419]
[1724981953126,0.445213,59224.0,59218.0,0.084419]
[1724981953429,0.19046032,59223.0,59218.0,0.084419]
[1724981953735,0.19046032,59223.0,59219.0,0.084419]
[1724981954132,0.19046032,59223.0,59220.0,3.77]
[1724981955638,0.19146032,59223.0,59220.0,3.77]
[1724981956042,0.19746032,59223.0,59220.0,3.77]
[1724981956542,0.19746032,59223.0,59219.0,0.084419]
[1724981956728,0.084417,59221.0,59217.0,0.0776]
[1724981957126,0.19846032,59223.0,59217.0,0.0776]
[1724981957127,0.2640451,59220.0,59217.0,0.0776]
[1724981957427,0.084418,59220.0,59217.0,0.0776]
[1724981957937,0.1796271,59219.0,59218.0,0.591021]
[1724981958132,0.1796271,59219.0,59218.0,0.374421]
[1724981958435,0.18118038,59221.0,59220.0,0.084418]
[1724981958636,0.001,59221.0,59220.0,0.084418]
[1724981958931,0.18118038,59221.0,59220.0,0.675436]
[1724981959133,0.05262658,59221.0,59220.0,1.275436]
[1724981959340,0.00025322,59227.0,59226.0,0.084409]
[1724981959531,0.00025322,59227.0,59226.0,4.505209]
[1724981959834,0.09377017,59227.0,59226.0,6.056938]
[1724981960031,1.7e-07,59227.0,59226.0,6.056938]
[1724981960832,1.7e-07,59227.0,59226.0,6.07551948]
[1724981961431,1.7e-07,59227.0,59226.0,5.99111048]
[1724981961635,0.00200017,59227.0,59226.0,5.99811048]
[1724981962435,0.00200017,59227.0,59226.0,5.39811048]
[1724981962736,0.00200017,59227.0,59226.0,5.99811048]
[1724981963442,0.00200017,59227.0,59226.0,5.99711048]
[1724981964334,0.00200017,59227.0,59226.0,6.00711048]
[1724981964923,0.00100017,59227.0,59226.0,6.00811048]
[1724981965130,0.00200017,59227.0,59226.0,6.00811048]
[1724981965841,0.00100017,59227.0,59226.0,6.00111048]
[1724981966041,0.00200017,59227.0,59226.0,6.00911048]
[1724981966230,0.00025322,59232.0,59226.0,6.00911048]
[1724981966437,0.00025322,59232.0,59231.0,0.819604]
[1724981966842,0.18684657,59232.0,59231.0,1.926084]
[1724981967830,0.0104376,59232.0,59231.0,1.934084]
[1724981968739,6e-07,59232.0,59231.0,1.938084]
[1724981969044,0.18193225,59232.0,59231.0,1.938084]
[1724981969729,0.0039,59247.0,59236.0,0.084395]
[1724981970040,0.0039,59254.0,59253.0,0.084371]
[1724981970243,0.3608,59256.0,59253.0,3.77]
[1724981970431,0.18248348,59246.0,59239.0,0.6821]
[1724981970632,0.084379,59247.0,59239.0,0.3608]
[1724981970839,0.18248348,59246.0,59240.0,3.77]
[1724981971135,0.18248348,59246.0,59245.0,0.084382]
[1724981972144,0.18848348,59246.0,59245.0,0.084382]
[1724981972744,0.18248348,59246.0,59245.0,0.084382]
[1724981972944,0.19348348,59246.0,59245.0,0.085382]
[1724981973546,0.28028348,59246.0,59245.0,0.086382]
[1724981974237,0.27628348,59246.0,59245.0,0.085382]
[1724981974445,0.27128348,59246.0,59245.0,0.085382]
[1724981975133,0.26528348,59246.0,59245.0,0.084382]
[1724981975439,0.27228348,59246.0,59245.0,0.085382]
[1724981976340,0.19148348,59246.0,59245.0,0.085382]
[1724981976739,0.18948348,59246.0,59245.0,0.084382]
[1724981977036,0.19148348,59246.0,59245.0,3.855382]
[1724981978137,0.26950684,59246.0,59245.0,3.855382]
[1724981983139,0.19148348,59246.0,59245.0,3.855382]
[1724981983341,0.19148348,59246.0,59245.0,3.939764]
[1724981983748,0.19148348,59246.0,59245.0,3.855382]
[1724981984053,0.26950684,59246.0,59245.0,3.855382]
[1724981984237,0.19148348,59246.0,59245.0,3.855382]
[1724981985147,0.19148348,59246.0,59245.0,4.576982]
[1724981985738,0.26950684,59246.0,59245.0,4.576982]
[1724981986162,0.19148348,59246.0,59245.0,4.576982]
[1724981994253,0.19148348,59246.0,59245.0,0.3618]
[1724981994254,0.27586448,59246.0,59245.0,0.3618]
[1724981994560,0.94302448,59246.0,59245.0,0.3618]
[1724981995765,1.03371909,59246.0,59245.0,0.3618]
[1724981996461,1.63371909,59246.0,59245.0,0.3618]
[1724981997168,1.03371909,59246.0,59245.0,0.3618]
[1724981997858,0.95569573,59246.0,59245.0,0.3618]
[1724981998266,1.03371909,59246.0,59245.0,0.3618]
[1724981998964,1.03371909,59246.0,59245.0,0.001]
[1724982001058,0.95569573,59246.0,59245.0,0.001]
[1724982003961,0.20415473,59246.0,59245.0,0.085382]
[1724982004157,0.19148348,59246.0,59245.0,0.085382]
[1724982005758,0.19148348,59246.0,59245.0,3.855382]
[1724982010065,0.18948348,59246.0,59245.0,3.855382]
[1724982010265,0.18948348,59246.0,59245.0,3.858382]
[1724982010666,0.18948348,59246.0,59245.0,3.857382]
[1724982011269,0.18548348,59246.0,59245.0,3.856382]
[1724982011572,0.18548348,59246.0,59245.0,3.772]
[1724982011763,0.26986448,59246.0,59245.0,3.77]
[1724982011965,0.26986448,59246.0,59245.0,3.772]
[1724982012178,0.27386448,59246.0,59245.0,3.773]
[1724982012677,0.27386448,59246.0,59245.0,0.003]
[1724982013161,0.27686448,59246.0,59245.0,0.003]
[1724982013362,0.35956448,59246.0,59245.0,0.001]
[1724982013568,0.36156448,59246.0,59245.0,0.001]
[1724982013779,0.27886448,59246.0,59245.0,0.001]
[1724982013963,0.27686448,59246.0,59245.0,0.001]
[1724982014270,0.28086448,59246.0,59245.0,0.001]
[1724982014775,0.28186448,59246.0,59245.0,0.001]
[1724982014969,0.27186448,59246.0,59244.0,0.084382]
[1724982015269,0.28086448,59246.0,59245.0,0.001]
[1724982015772,0.27186448,59246.0,59244.0,0.084382]
[1724982016068,0.28186448,59246.0,59245.0,0.001]
[1724982016370,0.35988784,59246.0,59245.0,0.001]
[1724982016763,0.35488784,59246.0,59245.0,0.001]
[1724982016976,0.35888784,59246.0,59245.0,0.001]
[1724982017374,0.27050684,59246.0,59245.0,0.085382]
[1724982017570,0.27550684,59246.0,59245.0,0.085382]
[1724982018169,0.26550684,59246.0,59245.0,0.084382]
[1724982018468,0.27450684,59246.0,59245.0,0.084382]
[1724982019070,0.26550684,59246.0,59245.0,0.084382]
[1724982019277,0.27550684,59246.0,59245.0,0.085382]
[1724982020077,0.27350684,59246.0,59245.0,0.085382]
[1724982020864,0.26350684,59246.0,59245.0,0.084382]
[1724982021069,0.27150684,59246.0,59245.0,0.085382]
[1724982021273,0.27350684,59246.0,59245.0,0.085382]
[1724982021866,0.27250684,59246.0,59245.0,0.085382]
[1724982022568,0.27250684,59246.0,59245.0,0.084382]
[1724982022773,0.27250684,59246.0,59245.0,0.085382]
[1724982022973,0.27050684,59246.0,59245.0,0.085382]
[1724982023370,0.19248348,59246.0,59245.0,0.085382]
[1724982024273,0.19348348,59246.0,59245.0,0.085382]
[1724982025072,0.18548348,59246.0,59245.0,0.085382]
[1724982025273,0.19248348,59246.0,59245.0,0.085382]
[1724982025873,0.18248348,59246.0,59245.0,0.084382]
[1724982026077,0.19248348,59246.0,59245.0,0.085382]
[1724982026476,0.19048348,59246.0,59245.0,0.085382]
[1724982026776,0.19348348,59246.0,59245.0,0.085382]
[1724982028688,0.19348348,59246.0,59245.0,3.855382]
[1724982028984,0.19248348,59246.0,59245.0,3.855382]
[1724982030582,0.19148348,59246.0,59245.0,3.855382]
[1724982035284,0.27586448,59246.0,59245.0,0.085382]
[1724982035884,0.27586448,59246.0,59245.0,0.001]
[1724982037982,0.0921098,59246.0,59245.0,0.001]
[1724982038282,0.27610964,59246.0,59245.0,0.001]
[1724982038482,0.354133,59246.0,59245.0,0.001]
[1724982039978,0.269752,59246.0,59245.0,0.085382]
[1724982041089,0.19172864,59246.0,59245.0,0.169764]
[1724982041389,0.269752,59246.0,59245.0,0.676124]
[1724982041588,0.19172864,59246.0,59245.0,0.676124]
[1724982041789,0.19172864,59246.0,59245.0,4.446124]
[1724982042392,0.19172864,59246.0,59245.0,4.46505742]
[1724982044382,0.19172864,59246.0,59245.0,5.06505742]
[1724982044688,0.09008164,59246.0,59245.0,5.14943942]
[1724982044888,6.4e-07,59246.0,59245.0,5.14943942]
[1724982045279,6.4e-07,59246.0,59245.0,5.16343942]
[1724982045985,0.0039,59261.0,59260.0,0.084361]
[1724982046180,0.085,59267.0,59261.0,0.084359]
[1724982046591,0.27610197,59262.0,59261.0,0.084359]
[1724982046984,0.19460197,59262.0,59261.0,0.084359]
[1724982047291,0.01267125,59270.0,59269.0,0.084348]
[1724982047495,0.084344,59272.0,59269.0,0.084348]
[1724982047797,0.084344,59272.0,59270.0,0.084346]
[1724982047993,0.19575231,59271.0,59270.0,0.084346]
[1724982049592,0.19875231,59271.0,59270.0,0.084346]
[1724982050194,0.19975231,59271.0,59270.0,0.084346]
[1724982050497,0.19975231,59271.0,59270.0,3.855346]
[1724982050991,0.19975231,59271.0,59270.0,3.854346]
[1724982051196,0.19975231,59271.0,59270.0,0.001]
[1724982051394,0.19975231,59271.0,59260.0,0.3608]
[1724982051395,0.084359,59261.0,59260.0,0.3608]
[1724982051608,0.084366,59256.0,59255.0,0.00025322]
[1724982051891,0.445166,59256.0,59255.0,0.00025322]
[1724982052097,1.73121966,59256.0,59255.0,0.00025322]
[1724982052296,1.74389091,59256.0,59255.0,0.00025322]
[1724982052597,1.74389091,59256.0,59246.0,0.08438]
[1724982052598,0.084373,59252.0,59246.0,0.08438]
[1724982052799,0.084374,59251.0,59246.0,0.08438]
[1724982052998,0.084377,59249.0,59243.0,0.3608]
[1724982053403,0.27713635,59248.0,59241.0,0.084387]
[1724982053598,0.3608,59245.0,59241.0,0.084387]
[1724982053900,0.19275835,59244.0,59241.0,0.084387]
[1724982054394,0.18844992,59245.0,59242.0,0.084386]
[1724982054600,0.18844992,59245.0,59244.0,0.29]
[1724982054893,0.01292447,59250.0,59249.0,0.084376]
[1724982055087,0.00025322,59250.0,59249.0,0.735176]
[1724982055397,0.17869112,59250.0,59249.0,0.735176]
[1724982056082,0.17869112,59250.0,59249.0,0.736176]
[1724982057094,0.17869112,59250.0,59249.0,0.737176]
[1724982057300,0.18969112,59250.0,59249.0,4.507176]
[1724982058094,0.18969112,59250.0,59249.0,4.217176]
[1724982059198,0.18969112,59250.0,59249.0,3.856376]
[1724982060193,0.18969112,59250.0,59249.0,0.002]
[1724982060397,0.27406612,59250.0,59249.0,0.002]
[1724982071806,0.63486612,59250.0,59249.0,0.002]
[1724982072192,0.64753607,59250.0,59249.0,0.002]
[1724982076904,0.084389,59240.0,59239.0,0.00025322]
[1724982077210,0.084389,59240.0,59209.0,0.233312]
[1724982077211,1.50481248,59240.0,59222.0,0.084414]
[1724982077411,1.50481248,59240.0,59218.0,0.3647]
[1724982077412,0.084417,59221.0,59218.0,0.3608]
[1724982077706,0.18354451,59220.0,59218.0,0.3608]
[1724982078207,0.17954451,59220.0,59218.0,0.3608]
[1724982078406,0.17954451,59220.0,59218.0,0.44522]
[1724982078608,0.17954451,59220.0,59218.0,0.3608]
[1724982079003,0.17954451,59220.0,59218.0,0.3658]
[1724982080007,0.17954451,59220.0,59219.0,0.084419]
[1724982080205,0.18154451,59220.0,59219.0,0.084419]
[1724982080797,0.17954451,59220.0,59219.0,0.084419]
[1724982081000,0.18254451,59220.0,59219.0,0.084419]
[1724982082700,0.18354451,59220.0,59219.0,0.084419]
[1724982082900,0.18354451,59220.0,59219.0,0.085419]
[1724982083101,0.004,59220.0,59219.0,0.085419]
[1724982083301,0.18048732,59220.0,59219.0,0.084419]
[1724982083602,0.18048732,59220.0,59219.0,0.085419]
[1724982084206,0.09425932,59220.0,59219.0,0.592019]
[1724982084411,1e-07,59220.0,59219.0,1.528957]
[1724982084704,0.3608,59251.0,59248.0,0.084378]
[1724982085106,0.3608,59251.0,59249.0,0.084376]
[1724982085300,0.1792336,59250.0,59249.0,0.084376]
[1724982086306,0.2636086,59250.0,59249.0,0.001]
[1724982086507,0.27627927,59250.0,59249.0,0.001]
[1724982086701,0.27627927,59250.0,59245.0,0.084382]
[1724982086909,0.28227927,59250.0,59245.0,0.084382]
[1724982087506,0.27827927,59250.0,59245.0,0.084382]
[1724982087810,0.28627927,59250.0,59245.0,0.084382]
[1724982088197,0.28627927,59250.0,59244.0,0.00025322]
[1724982088198,0.08438,59247.0,59244.0,0.00025322]
[1724982088603,0.19083398,59246.0,59244.0,0.00025322]
[1724982089199,0.19083398,59246.0,59245.0,0.3608]
[1724982089512,0.18324143,59249.0,59245.0,0.3618]
[1724982089814,0.008,59250.0,59245.0,0.3618]
[1724982090012,0.005,59247.0,59246.0,0.08438]
[1724982090518,0.18870401,59247.0,59246.0,0.08438]
[1724982091711,0.18370401,59247.0,59246.0,0.08438]
[1724982092114,0.18370401,59247.0,59245.0,0.3618]
[1724982092115,0.19053188,59249.0,59248.0,0.084378]
[1724982092303,0.18853188,59249.0,59248.0,0.374378]
[1724982092510,0.006,59250.0,59249.0,0.084376]
[1724982092708,0.006,59250.0,59249.0,0.165076]
[1724982092917,0.18181721,59250.0,59249.0,0.165076]
[1724982093105,0.17581721,59250.0,59249.0,0.165076]
[1724982093505,0.18954887,59254.0,59253.0,0.08437]
[1724982093716,0.09867548,59257.0,59253.0,0.08437]
[1724982094212,0.18954887,59254.0,59253.0,0.08437]
[1724982095512,0.20054887,59254.0,59253.0,0.08537]
[1724982095820,0.20054887,59254.0,59253.0,0.37537]
[1724982096017,0.20054887,59254.0,59253.0,0.542941]
[1724982096314,0.20054887,59254.0,59253.0,0.45957]
[1724982096825,0.20054887,59254.0,59253.0,4.22857]
[1724982097119,0.21454887,59254.0,59253.0,4.22957]
[1724982097418,0.21454887,59254.0,59253.0,4.73585]
[1724982097809,0.20054887,59254.0,59253.0,4.75750941]
[1724982098118,0.19054887,59254.0,59253.0,4.74585]
[1724982098323,0.19054887,59254.0,59253.0,4.23957]
[1724982098615,0.19054887,59254.0,59253.0,4.15637]
[1724982105214,0.19054887,59254.0,59253.0,0.38637]
[1724982106237,0.27491787,59254.0,59253.0,0.012]
[1724982106412,0.36531787,59254.0,59253.0,0.012]
[1724982106919,0.28094887,59254.0,59253.0,0.096371]
[1724982109021,0.28094887,59254.0,59253.0,0.092371]
[1724982109217,0.28694887,59254.0,59253.0,0.084371]
[1724982110611,0.28894887,59254.0,59253.0,0.085371]
[1724982110818,0.28994887,59254.0,59253.0,0.085371]
[1724982111414,0.19954887,59254.0,59253.0,0.375371]
[1724982112129,0.19754887,59254.0,59253.0,4.145371]
[1724982113016,0.19754887,59254.0,59253.0,4.144371]
[1724982113017,0.19154887,59254.0,59253.0,4.144371]
[1724982113222,0.19854887,59254.0,59253.0,4.145371]
[1724982113740,0.19954887,59254.0,59253.0,4.145371]
[1724982114318,0.19654887,59254.0,59253.0,4.148371]
[1724982114722,0.19654887,59254.0,59253.0,0.088371]
[1724982114926,0.19054887,59254.0,59253.0,0.087371]
[1724982115509,0.19054887,59254.0,59253.0,0.086371]
[1724982115718,0.19154887,59254.0,59253.0,0.376371]
[1724982116723,0.19854887,59254.0,59253.0,0.377371]
[1724982116923,0.19854887,59254.0,59253.0,0.087371]
[1724982117314,0.20354887,59254.0,59253.0,0.085371]
[1724982117716,0.28791787,59254.0,59253.0,0.001]
[1724982118026,0.45611787,59254.0,59253.0,0.001]
[1724982118613,0.084374,59251.0,59249.0,0.084376]
[1724982118820,0.172875,59250.0,59249.0,0.084376]
[1724982119021,0.36798843,59250.0,59249.0,0.084376]
[1724982120725,0.37398843,59250.0,59249.0,0.085376]
[1724982121124,0.37398843,59250.0,59249.0,0.001]
[1724982121422,0.37998843,59250.0,59249.0,0.001]
[1724982121835,1.8659987,59250.0,59249.0,0.001]
[1724982122134,1.87267018,59250.0,59249.0,0.001]
[1724982122315,1.88167018,59250.0,59249.0,0.002]
[1724982122511,1.28167018,59250.0,59249.0,0.002]
[1724982122920,1.27267018,59250.0,59249.0,0.001]
[1724982123118,1.28367018,59250.0,59249.0,0.002]
[1724982123319,0.77735018,59250.0,59249.0,0.002]
[1724982123513,0.77835018,59250.0,59249.0,0.002]
[1724982124625,0.77735018,59250.0,59249.0,0.002]
[1724982124827,0.41955018,59250.0,59249.0,0.002]
[1724982125021,0.4068787,59250.0,59249.0,0.002]
[1724982126233,0.3125037,59250.0,59249.0,0.086376]
[1724982126431,0.21211343,59250.0,59249.0,0.086376]
[1724982126724,0.21211343,59250.0,59249.0,1.277072]
[1724982127033,0.12367043,59250.0,59249.0,5.047072]
[1724982128619,0.02414543,59250.0,59249.0,5.06547089]
[1724982128820,0.0039,59264.0,59263.0,0.084357]
[1724982129025,0.01844704,59272.0,59263.0,0.6508]
[1724982129225,0.084336,59278.0,59271.0,0.3608]
[1724982129530,0.17579458,59273.0,59271.0,0.3608]
[1724982129725,0.19444839,59277.0,59271.0,0.445145]
[1724982129926,0.10252995,59278.0,59271.0,0.445145]
[1724982130322,0.012,59272.0,59271.0,0.445145]
[1724982130631,0.18747661,59272.0,59271.0,0.445145]
[1724982130929,0.17547661,59272.0,59271.0,0.446145]
[1724982131332,0.17547661,59276.0,59271.0,0.446145]
[1724982131923,0.17547661,59276.0,59271.0,0.445145]
[1724982132120,0.014,59272.0,59271.0,0.446145]
[1724982132522,0.19450091,59272.0,59271.0,0.447145]
[1724982133018,0.19450091,59272.0,59271.0,0.002]
[1724982133224,1.74580491,59272.0,59271.0,0.001]
[1724982133429,1.76347446,59272.0,59271.0,0.002]
[1724982133634,1.74947446,59272.0,59271.0,0.002]
[1724982134124,1.74947446,59272.0,59271.0,0.001]
[1724982134321,1.75347446,59272.0,59271.0,0.002]
[1724982135228,1.77189317,59272.0,59271.0,0.002]
[1724982136833,1.17189317,59272.0,59271.0,0.002]
[1724982137336,0.66573317,59272.0,59271.0,0.002]
[1724982139637,0.66673317,59272.0,59271.0,0.002]
[1724982139937,0.66273317,59272.0,59271.0,0.001]
[1724982140237,0.67273317,59272.0,59271.0,0.002]
[1724982140934,1.17889317,59272.0,59271.0,0.002]
[1724982141535,1.77889317,59272.0,59271.0,0.002]
[1724982142035,0.084348,59269.0,59253.0,0.08437]
[1724982142241,0.3608,59256.0,59249.0,0.00088]
[1724982142443,0.174,59255.0,59245.0,0.084382]
[1724982142629,0.084376,59250.0,59245.0,0.084382]
[1724982143030,0.18456441,59249.0,59245.0,0.084382]
[1724982144143,0.54536441,59249.0,59241.0,0.00025322]
[1724982144541,0.084378,59248.0,59245.0,0.014]
[1724982144840,0.084378,59248.0,59245.0,0.024]
[1724982145044,0.19035241,59247.0,59245.0,0.024]
[1724982145433,0.19035241,59247.0,59245.0,0.01]
[1724982146448,0.19035241,59247.0,59243.0,0.084385]
[1724982146449,0.19135241,59247.0,59243.0,0.084385]
[1724982147333,0.19135241,59247.0,59245.0,0.014]
[1724982147535,0.19235241,59247.0,59245.0,0.014]
[1724982148152,0.19435241,59247.0,59243.0,0.085385]
[1724982148334,0.19435241,59247.0,59244.0,0.084383]
[1724982148533,0.19535241,59247.0,59244.0,0.084383]
[1724982149337,0.19335241,59247.0,59244.0,0.084383]
[1724982150941,0.19235241,59247.0,59244.0,0.084383]
[1724982151738,0.19035241,59247.0,59244.0,0.084383]
[1724982151947,0.19335241,59247.0,59244.0,0.084383]
[1724982153443,0.19335241,59247.0,59245.0,0.084382]
[1724982153650,0.19335241,59247.0,59246.0,0.084381]
[1724982154341,0.19335241,59247.0,59246.0,3.854381]
[1724982154546,0.19035241,59247.0,59246.0,3.854381]
[1724982154750,0.19435241,59247.0,59246.0,3.854381]
[1724982154946,0.004,59247.0,59246.0,3.854381]
[1724982155251,0.04697415,59257.0,59253.0,0.08437]
[1724982155547,0.084359,59261.0,59257.0,0.084365]
[1724982155752,0.10296014,59261.0,59257.0,0.084365]
[1724982155950,0.19498597,59259.0,59257.0,0.084365]
[1724982156150,0.084363,59259.0,59257.0,0.084365]
[1724982156649,0.19498597,59258.0,59257.0,0.084365]
[1724982157238,0.19498597,59258.0,59257.0,0.085365]
[1724982157941,0.19498597,59258.0,59257.0,0.086365]
[1724982158239,0.20198597,59258.0,59257.0,0.086365]
[1724982159751,0.20198597,59258.0,59257.0,0.085365]
[1724982159752,0.19498597,59258.0,59257.0,0.085365]
[1724982160043,0.20198597,59258.0,59257.0,0.086365]
[1724982161938,0.20498597,59258.0,59257.0,0.086365]
[1724982162338,0.20498597,59258.0,59257.0,0.10514054]
[1724982162839,0.19798597,59258.0,59257.0,0.10514054]
[1724982163038,0.20498597,59258.0,59257.0,0.10514054]
[1724982163447,0.19798597,59258.0,59257.0,0.10414054]
[1724982163646,0.11403197,59258.0,59257.0,1.29478554]
[1724982163949,0.11403197,59258.0,59257.0,0.69478554]
[1724982164147,0.11003197,59258.0,59257.0,0.70178554]
[1724982164349,0.10703197,59258.0,59257.0,0.70378554]
[1724982164552,0.10703197,59258.0,59257.0,0.61942054]
[1724982165038,0.10603197,59258.0,59257.0,0.61242054]
[1724982165235,0.10703197,59258.0,59257.0,0.61742054]
[1724982166748,0.10603197,59258.0,59257.0,0.10514054]
[1724982166945,0.10703197,59258.0,59257.0,0.092365]
[1724982167441,0.10603197,59258.0,59257.0,0.086365]
[1724982167647,0.10703197,59258.0,59257.0,0.092365]
[1724982167848,0.10703197,59258.0,59257.0,0.090365]
[1724982168150,0.10603197,59258.0,59257.0,0.089365]
[1724982168734,0.10603197,59258.0,59257.0,0.090365]
[1724982170043,0.10703197,59258.0,59257.0,0.813965]
[1724982170248,0.10703197,59258.0,59257.0,0.811965]
[1724982170449,0.10603197,59258.0,59257.0,0.805965]
[1724982170644,0.10603197,59258.0,59257.0,0.808965]
[1724982170948,0.10603197,59258.0,59257.0,0.805965]
[1724982171148,0.10703197,59258.0,59257.0,0.811965]
[1724982171343,0.10703197,59258.0,59257.0,0.813965]
[1724982171946,0.10703197,59258.0,59257.0,1.320245]
[1724982172152,0.10803197,59258.0,59257.0,1.318245]
[1724982173354,0.10703197,59258.0,59257.0,0.805965]
[1724982173555,0.10603197,59258.0,59257.0,0.808965]
[1724982173852,0.01558497,59258.0,59257.0,2.085975]
[1724982174052,0.01658497,59258.0,59257.0,2.088975]
[1724982174354,0.01658497,59258.0,59257.0,5.858975]
[1724982174554,0.01658497,59258.0,59257.0,5.856975]
[1724982174748,0.01658497,59258.0,59257.0,5.853975]
[1724982175149,9.7e-07,59258.0,59257.0,5.853975]
[1724982175443,0.01656955,59274.0,59257.0,5.60088]
[1724982175649,0.0039,59279.0,59278.0,0.084335]
[1724982175856,0.0875,59280.0,59278.0,0.084335]
[1724982176050,0.18828732,59279.0,59278.0,0.084335]
[1724982177450,0.19728732,59279.0,59278.0,0.086335]
[1724982178854,0.19728732,59279.0,59278.0,0.447135]
[1724982181160,0.27533322,59279.0,59278.0,0.447135]
[1724982182956,0.27533322,59279.0,59278.0,0.086335]
[1724982186863,0.27533322,59279.0,59278.0,0.002]
[1724982187168,0.27533322,59279.0,59278.0,0.376334]
[1724982189063,0.19728732,59279.0,59278.0,0.376334]
[1724982192057,0.19728732,59279.0,59278.0,0.086334]
[1724982195466,0.28162132,59279.0,59278.0,0.086334]
[1724982195768,0.28162132,59279.0,59278.0,0.002]
[1724982195963,0.35966722,59279.0,59278.0,0.002]
[1724982196369,0.35966722,59279.0,59278.0,0.001]
[1724982196773,0.26833322,59279.0,59275.0,0.3608]
[1724982196964,0.0780459,59278.0,59275.0,0.3608]
[1724982197167,0.0780459,59277.0,59275.0,0.3608]
[1724982197371,0.0780459,59276.0,59275.0,0.3608]
[1724982197877,0.35725336,59276.0,59275.0,0.3608]
[1724982198570,0.35725336,59276.0,59274.0,0.08434]
[1724982198764,0.1623849,59275.0,59274.0,0.3608]
[1724982198969,0.084339,59275.0,59274.0,0.3608]
[1724982199269,0.27467214,59275.0,59274.0,0.6508]
[1724982199669,0.27367214,59275.0,59274.0,0.6508]
[1724982200565,0.19633314,59275.0,59274.0,0.736141]
[1724982200972,0.19233314,59275.0,59274.0,0.735141]
[1724982201175,0.19433314,59275.0,59274.0,0.736141]
[1724982201569,0.19233314,59275.0,59274.0,0.736141]
[1724982201770,0.19233314,59275.0,59274.0,0.737141]
[1724982201771,0.19833314,59275.0,59274.0,0.737141]
[1724982202274,0.27637904,59275.0,59274.0,0.737141]
[1724982202978,0.27437904,59275.0,59274.0,0.736141]
[1724982203274,0.27137904,59275.0,59274.0,0.7536686]
[1724982203476,0.27237904,59275.0,59274.0,0.735141]
[1724982203893,0.26837904,59275.0,59274.0,0.735141]
[1724982204075,0.26837904,59275.0,59274.0,0.736141]
[1724982204076,0.19233314,59275.0,59274.0,0.736141]
[1724982205679,0.19233314,59275.0,59274.0,0.3618]
[1724982205881,0.50612,59274.0,59258.0,0.0039]
[1724982206083,0.3608,59265.0,59255.0,0.3608]
[1724982206287,0.1815,59264.0,59255.0,0.445168]
[1724982206593,0.084357,59263.0,59256.0,0.084366]
[1724982206887,0.27854325,59264.0,59255.0,0.6508]
[1724982207186,0.18763718,59263.0,59261.0,0.3608]
[1724982207385,0.18763718,59263.0,59261.0,0.735158]
[1724982207586,0.18763718,59263.0,59262.0,0.084358]
[1724982209389,0.18963718,59263.0,59262.0,0.084358]
[1724982209991,0.19063718,59263.0,59262.0,0.084358]
[1724982216103,0.19063718,59263.0,59262.0,0.445158]
[1724982216787,0.19063718,59263.0,59262.0,0.084358]
[1724982219993,0.27499418,59263.0,59262.0,0.084358]
[1724982220495,0.27499418,59263.0,59256.0,0.3608]
[1724982220496,0.19063718,59263.0,59256.0,0.3608]
[1724982220798,0.26868308,59263.0,59256.0,0.3608]
[1724982221400,0.084365,59257.0,59256.0,0.3608]
[1724982221607,0.084368,59255.0,59254.0,0.00025322]
[1724982221792,0.081368,59255.0,59254.0,0.00025322]
[1724982221994,0.35124604,59255.0,59254.0,0.00025322]
[1724982222194,0.27320014,59255.0,59254.0,0.00025322]
[1724982222799,0.35124604,59255.0,59254.0,0.00025322]
[1724982223005,0.27020014,59255.0,59254.0,0.00025322]
[1724982223202,0.26420014,59255.0,59254.0,0.00025322]
[1724982223904,0.26420014,59255.0,59254.0,0.00825322]
[1724982224294,0.55420014,59255.0,59254.0,0.00825322]
[1724982224700,0.08439,59240.0,59238.0,0.0039]
[1724982224894,0.084392,59239.0,59236.0,0.3608]
[1724982225096,0.26278517,59239.0,59236.0,0.3608]
[1724982225293,0.26966325,59243.0,59236.0,0.3608]
[1724982225493,0.09416325,59243.0,59236.0,0.6508]
[1724982225695,0.17839317,59238.0,59237.0,0.084394]
[1724982225997,0.00025322,59243.0,59242.0,0.084386]
[1724982226403,0.18854997,59243.0,59242.0,0.084386]
[1724982228198,0.18854997,59243.0,59242.0,3.854386]
[1724982228599,0.19054997,59243.0,59242.0,3.854386]
[1724982229299,0.05359998,59249.0,59244.0,0.084383]
[1724982229500,0.01807991,59249.0,59244.0,0.084383]
[1724982229698,0.19277565,59246.0,59244.0,0.084383]
[1724982229903,0.27715365,59248.0,59244.0,0.084383]
[1724982230101,0.18850927,59247.0,59244.0,0.084383]
[1724982230305,0.084378,59248.0,59244.0,0.084383]
[1724982230707,0.18850927,59246.0,59244.0,0.084383]
[1724982230910,0.27288927,59247.0,59244.0,0.084383]
[1724982231111,0.08438,59247.0,59244.0,0.084383]
[1724982231509,0.18365716,59246.0,59244.0,0.084383]
[1724982231901,0.18765716,59246.0,59244.0,0.084383]
[1724982232608,0.27203816,59246.0,59244.0,0.084383]
[1724982233107,0.084382,59245.0,59242.0,3.77092]
[1724982233306,0.084382,59245.0,59242.0,3.77]
[1724982233507,0.1799277,59244.0,59242.0,3.77]
[1724982234215,0.084385,59243.0,59241.0,0.445188]
[1724982234416,0.1799277,59244.0,59241.0,0.445188]
[1724982234611,0.18983249,59242.0,59241.0,0.445188]
[1724982234811,0.086382,59245.0,59244.0,0.084384]
[1724982235016,0.002,59245.0,59244.0,0.084384]
[1724982235214,0.18563047,59245.0,59244.0,0.084384]
[1724982235518,0.20445905,59245.0,59244.0,0.084384]
[1724982235709,0.20245905,59245.0,59244.0,0.084384]
[1724982236315,0.18363047,59245.0,59244.0,0.084384]
[1724982236607,0.19229097,59248.0,59244.0,0.084384]
[1724982237017,0.084377,59249.0,59244.0,0.084384]
[1724982237215,0.084377,59249.0,59245.0,0.084382]